bitfinex/quotes_SOLUSD_20251006
["timestamp","ask_amount","ask_price","bid_price","bid_amount"]
[1759769005259,7.27758263,235.43,235.37,20.0]
[1759769005455,7.27758263,235.43,235.38,29.82]
[1759769005456,3.03003559,235.39,235.38,29.82]
[1759769007071,36.60414984,235.43,235.38,29.82]
[1759769007072,3.03003559,235.4,235.38,29.82]
[1759769007545,4.24826883,235.39,235.38,29.82]
[1759769007742,17.89897649,235.39,235.36,0.66]
[1759769007947,17.89897649,235.39,235.37,29.84]
[1759769009568,15.36704612,235.42,235.37,29.84]
[1759769009759,3.03003559,235.39,235.37,29.84]
[1759769010442,15.36704612,235.42,235.37,29.84]
[1759769010650,3.03003559,235.38,235.37,29.84]
[1759769011570,7.2784849,235.38,235.37,29.84]
[1759769012360,4.24844931,235.38,235.37,29.84]
[1759769012547,4.24844931,235.38,235.37,30.5]
[1759769013764,4.24844931,235.38,235.37,29.84]
[1759769014162,4.24844931,235.38,235.37,30.5]
[1759769016678,4.24844931,235.38,235.37,29.84]
[1759769017175,4.24844931,235.38,235.37,30.5]
[1759769017681,4.24844931,235.38,235.37,29.84]
[1759769017993,7.2784849,235.38,235.37,29.84]
[1759769019066,4.24844931,235.38,235.37,29.84]
[1759769019267,4.24844931,235.38,235.37,30.5]
[1759769021882,4.24844931,235.38,235.37,29.84]
[1759769022179,7.2784849,235.38,235.37,29.84]
[1759769022976,4.24844931,235.38,235.37,29.84]
[1759769023873,7.2784849,235.38,235.37,29.84]
[1759769024082,4.24844931,235.38,235.37,30.5]
[1759769024868,10.61890184,235.43,235.37,30.5]
[1759769025065,10.61890184,235.43,235.38,20.66]
[1759769025267,10.61890184,235.43,235.39,29.82]
[1759769025466,10.61890184,235.43,235.4,0.66]
[1759769025666,10.61890184,235.43,235.41,30.48]
[1759769026076,13.64893743,235.43,235.41,30.48]
[1759769027270,17.89648447,235.43,235.41,30.48]
[1759769027470,3.03003559,235.42,235.41,30.48]
[1759769027663,3.03003559,235.42,235.41,29.82]
[1759769028481,10.61890184,235.43,235.41,29.82]
[1759769028681,13.64893743,235.43,235.41,29.82]
[1759769028868,13.64893743,235.43,235.41,30.52]
[1759769029068,3.03003559,235.42,235.41,30.52]
[1759769029281,3.03003559,235.42,235.38,20.0]
[1759769029589,3.03003559,235.39,235.36,29.82]
[1759769029794,3.03003559,235.37,235.36,29.82]
[1759769030084,3.03003559,235.37,235.34,0.7]
[1759769030281,3.03003559,235.35,235.32,20.7]
[1759769030490,3.03003559,235.34,235.33,30.52]
[1759769030690,3.03003559,235.35,235.33,30.52]
[1759769030874,3.03003559,235.35,235.34,0.7]
[1759769031191,15.3689409,235.39,235.34,29.82]
[1759769031399,3.03003559,235.36,235.35,0.7]
[1759769031574,3.03003559,235.36,235.34,29.82]
[1759769031772,3.03003559,235.36,235.34,30.52]
[1759769032181,3.03003559,235.35,235.34,30.52]
[1759769032787,3.03003559,235.35,235.34,29.82]
[1759769032788,7.27902645,235.35,235.34,29.82]
[1759769033697,4.24899086,235.35,235.34,30.52]
[1759769033896,4.24899086,235.35,235.34,50.52]
[1759769034186,4.24899086,235.35,235.34,30.52]
[1759769034397,4.24899086,235.35,235.34,50.52]
[1759769034970,14.86957259,235.38,235.34,50.52]
[1759769035164,14.86957259,235.38,235.35,0.7]
[1759769035368,16.80913365,235.38,235.36,30.52]
[1759769036292,14.86957259,235.38,235.37,0.7]
[1759769037087,14.86957259,235.38,235.36,29.82]
[1759769037287,4.24844931,235.38,235.37,0.7]
[1759769037516,4.24844931,235.38,235.37,20.7]
[1759769037816,10.6200811,235.41,235.37,20.7]
[1759769037817,4.24826336,235.4,235.37,20.7]
[1759769038108,4.24826336,235.4,235.38,30.52]
[1759769038299,4.24826336,235.4,235.39,0.7]
[1759769038695,4.24826336,235.4,235.39,20.7]
[1759769039106,1.93956106,235.45,235.39,20.7]
[1759769039107,14.86578321,235.44,235.39,20.7]
[1759769039298,14.86578321,235.44,235.4,30.52]
[1759769039603,14.86578321,235.44,235.41,0.7]
[1759769039803,14.86578321,235.44,235.42,29.82]
[1759769040101,16.80534427,235.44,235.42,29.82]
[1759769040999,10.61841658,235.44,235.42,29.82]
[1759769041188,4.24700586,235.46,235.43,0.7]
[1759769041388,4.24700586,235.46,235.44,29.82]
[1759769041588,4.24700586,235.46,235.45,20.7]
[1759769042807,4.34680076,235.48,235.45,20.7]
[1759769043011,4.34680076,235.48,235.46,30.52]
[1759769043203,4.34680076,235.48,235.47,0.7]
[1759769044093,4.34680076,235.48,235.47,20.7]
[1759769045004,0.1,235.48,235.47,20.7]
[1759769046618,4.34664515,235.48,235.47,20.7]
[1759769047330,0.1,235.48,235.47,20.7]
[1759769047699,0.1,235.48,235.47,31.57647521]
[1759769048626,0.1,235.48,235.47,50.52]
[1759769048809,4.34664515,235.48,235.47,50.52]
[1759769050101,0.1,235.48,235.47,50.52]
[1759769051110,4.34664515,235.48,235.47,50.52]
[1759769051423,0.1,235.48,235.47,50.52]
[1759769053031,0.1,235.48,235.47,61.39647521]
[1759769055721,0.1,235.58,235.57,20.0]
[1759769055922,0.1,235.58,235.57,49.8]
[1759769056221,0.1,235.58,235.57,50.5]
[1759769056222,4.34484251,235.58,235.57,50.5]
[1759769056410,0.1,235.58,235.57,50.5]
[1759769057012,0.6,235.58,235.57,20.0]
[1759769057212,6.28440357,235.58,235.57,49.8]
[1759769057410,4.34484251,235.58,235.57,49.8]
[1759769059426,4.34484251,235.58,235.57,50.52]
[1759769059829,4.34484251,235.58,235.57,49.8]
[1759769060926,4.34484251,235.58,235.57,20.0]
[1759769060927,4.84484251,235.58,235.57,20.0]
[1759769061119,6.78440357,235.58,235.57,49.8]
[1759769061313,4.34484251,235.58,235.57,49.8]
[1759769061739,4.34484251,235.58,235.57,20.0]
[1759769061910,4.34484251,235.58,235.57,49.8]
[1759769062109,4.84484251,235.58,235.57,20.0]
[1759769062321,4.34484251,235.58,235.57,49.8]
[1759769062608,6.78440357,235.58,235.57,49.8]
[1759769062835,4.34484251,235.58,235.57,49.8]
[1759769064534,4.84484251,235.58,235.57,49.8]
[1759769064737,4.34484251,235.58,235.57,49.8]
[1759769065239,4.34484251,235.58,235.57,20.0]
[1759769065440,4.34484251,235.58,235.57,49.8]
[1759769066110,6.28440357,235.58,235.57,20.0]
[1759769066310,17.39650986,235.58,235.57,29.8]
[1759769066936,17.39650986,235.58,235.46,10.87647521]
[1759769066937,17.39650986,235.58,235.47,0.72]
[1759769067128,1.93956106,235.52,235.47,0.72]
[1759769067314,1.93956106,235.53,235.48,0.72]
[1759769067517,1.93956106,235.53,235.49,0.72]
[1759769068135,1.93956106,235.53,235.5,29.8]
[1759769068314,4.24592391,235.52,235.5,29.8]
[1759769068716,4.24592391,235.52,235.51,0.72]
[1759769068933,4.24592391,235.52,235.51,30.52]
[1759769069826,4.24592391,235.52,235.51,29.8]
[1759769070428,10.61447324,235.53,235.51,30.52]
[1759769070616,10.61447324,235.53,235.52,29.8]
[1759769071848,14.86021688,235.53,235.52,29.8]
[1759769073241,4.24574364,235.53,235.52,29.8]
[1759769073540,0.1,235.58,235.52,30.52]
[1759769073745,0.1,235.58,235.53,0.72]
[1759769073942,4.24502271,235.57,235.54,0.72]
[1759769074241,4.24502271,235.57,235.55,0.72]
[1759769074446,4.24502271,235.57,235.56,29.8]
[1759769074647,4.24502271,235.57,235.56,30.52]
[1759769076540,4.24502271,235.57,235.56,29.8]
[1759769077661,4.24502271,235.57,235.56,30.47]
[1759769078348,0.1,235.58,235.56,30.47]
[1759769078655,0.1,235.58,235.57,0.67]
[1759769079158,4.34494729,235.58,235.57,0.67]
[1759769079449,0.1,235.58,235.57,0.67]
[1759769083461,0.1,235.58,235.57,11.54647521]
[1759769083646,0.1,235.58,235.57,41.34647521]
[1759769083959,0.1,235.58,235.57,45.59093956]
[1759769084146,0.1,235.58,235.57,41.34647521]
[1759769086138,0.1,235.58,235.57,45.59149792]
[1759769087968,0.1,235.58,235.57,41.34647521]
[1759769088550,0.1,235.58,235.57,11.54647521]
[1759769088768,0.1,235.58,235.57,43.02423204]
[1759769090063,0.1,235.58,235.57,13.24423204]
[1759769090370,0.1,235.58,235.57,43.02423204]
[1759769092651,0.1,235.58,235.57,47.26925475]
[1759769092964,0.1,235.59,235.58,10.87647521]
[1759769093161,0.1,235.59,235.58,11.53647521]
[1759769093762,0.1,235.59,235.58,13.23408794]
[1759769094774,0.1,235.59,235.58,17.47893045]
[1759769094978,0.1,235.59,235.58,13.23408794]
[1759769096170,0.1,235.59,235.58,62.11647521]
[1759769100365,0.1,235.59,235.58,41.31647521]
[1759769100579,0.1,235.59,235.58,40.65647521]
[1759769101576,0.1,235.59,235.58,41.31647521]
[1759769101781,4.34466233,235.59,235.58,40.65647521]
[1759769101962,0.1,235.59,235.58,29.78]
[1759769105880,4.34466233,235.59,235.58,29.78]
[1759769106382,4.84466233,235.59,235.58,29.78]
[1759769106781,7.86664189,235.59,235.58,29.78]
[1759769106957,4.84466233,235.59,235.58,29.78]
[1759769108283,0.1,235.59,235.58,29.78]
[1759769108467,0.1,235.59,235.58,30.44]
[1759769110173,0.1,235.59,235.58,41.31647521]
[1759769111278,0.1,235.59,235.58,40.65647521]
[1759769111585,0.1,235.59,235.58,29.78]
[1759769111970,4.34469476,235.59,235.55,20.8]
[1759769112272,4.84469476,235.59,235.58,20.8]
[1759769112480,4.34469476,235.59,235.58,50.62]
[1759769112889,4.84469476,235.59,235.58,50.62]
[1759769113073,4.34469476,235.59,235.58,50.62]
[1759769114695,0.1,235.59,235.58,51.28]
[1759769115079,0.1,235.59,235.58,62.15647521]
[1759769115578,0.1,235.59,235.58,61.49647521]
[1759769116082,0.1,235.59,235.58,62.15647521]
[1759769117481,0.1,235.59,235.58,61.49647521]
[1759769119189,4.34466233,235.59,235.58,50.62]
[1759769120984,4.34466233,235.59,235.58,29.82]
[1759769125898,4.84466233,235.59,235.58,29.82]
[1759769126619,4.34466233,235.59,235.58,29.82]
[1759769127519,4.84466233,235.59,235.58,29.82]
[1759769130295,18.47829773,235.59,235.56,29.78]
[1759769130636,0.5,235.58,235.56,29.78]
[1759769130812,17.97829773,235.59,235.56,29.78]
[1759769131002,0.5,235.58,235.56,29.78]
[1759769131514,4.24502271,235.57,235.56,29.78]
[1759769133213,4.24484251,235.58,235.56,29.78]
[1759769134509,4.74484251,235.58,235.56,29.78]
[1759769134816,4.24484251,235.58,235.56,29.78]
[1759769135197,7.26682207,235.58,235.56,29.78]
[1759769135396,7.76682207,235.58,235.56,29.78]
[1759769135721,3.52197956,235.57,235.49,0.7]
[1759769135911,3.02197956,235.54,235.49,0.7]
[1759769136114,3.52197956,235.54,235.49,0.7]
[1759769136525,3.02197956,235.52,235.45,4.75978743]
[1759769136713,3.52197956,235.52,235.44,4.75978743]
[1759769136910,3.52197956,235.52,235.45,30.48]
[1759769137300,14.86136468,235.51,235.45,30.48]
[1759769137804,14.86136468,235.51,235.46,0.7]
[1759769138004,14.86136468,235.51,235.45,29.78]
[1759769138206,14.86136468,235.51,235.45,30.48]
[1759769138796,10.61526049,235.51,235.46,0.7]
[1759769139916,13.63724005,235.51,235.46,0.7]
[1759769140822,18.38334424,235.51,235.45,29.78]
[1759769141038,18.38334424,235.51,235.45,30.48]
[1759769141957,18.38334424,235.51,235.45,29.78]
[1759769142631,3.52197956,235.5,235.45,29.78]
[1759769142822,0.5,235.5,235.45,29.78]
[1759769143025,3.52197956,235.5,235.45,29.78]
[1759769143232,3.52197956,235.5,235.45,30.48]
[1759769143834,10.61526049,235.51,235.46,0.7]
[1759769144033,4.24592391,235.52,235.47,0.7]
[1759769144283,4.24484251,235.58,235.51,20.8]
[1759769144442,4.24484251,235.58,235.52,30.5]
[1759769144754,4.24484251,235.58,235.53,0.7]
[1759769145445,14.8569488,235.58,235.54,0.7]
[1759769145658,14.8569488,235.58,235.55,0.7]
[1759769145859,14.8569488,235.58,235.56,29.8]
[1759769146062,14.8569488,235.58,235.57,29.8]
[1759769148152,14.3569488,235.58,235.57,29.8]
[1759769149673,17.87892836,235.58,235.57,29.8]
[1759769150270,17.87892836,235.58,235.53,29.8]
[1759769150443,3.02197956,235.55,235.53,29.8]
[1759769150962,3.02197956,235.56,235.53,29.8]
[1759769152054,4.24538314,235.55,235.53,29.8]
[1759769152847,4.24538314,235.55,235.53,30.46]
[1759769153867,10.61313247,235.56,235.54,0.66]
[1759769154172,10.61313247,235.56,235.53,29.8]
[1759769154862,13.63511203,235.56,235.53,29.8]
[1759769155064,3.02197956,235.55,235.53,29.8]
[1759769155253,3.02197956,235.54,235.53,29.8]
[1759769155458,3.52197956,235.54,235.53,29.8]
[1759769155855,7.26754294,235.54,235.53,29.8]
[1759769157363,16.79649874,235.54,235.5,0.66]
[1759769157564,16.79649874,235.54,235.49,29.8]
[1759769157768,2.4370269,235.53,235.49,29.8]
[1759769158078,14.86073369,235.52,235.49,30.46]
[1759769158281,14.86073369,235.52,235.49,29.8]
[1759769158282,16.79776059,235.52,235.49,29.8]
[1759769158487,1.9370269,235.5,235.41,4.75978743]
[1759769158664,1.9370269,235.5,235.43,0.66]
[1759769159681,36.09035325,235.52,235.43,0.66]
[1759769160065,36.59035325,235.52,235.43,0.66]
[1759769160462,14.86073369,235.52,235.44,10.87647521]
[1759769160781,14.86073369,235.52,235.45,0.66]
[1759769162161,10.61480978,235.52,235.45,0.66]
[1759769162585,10.61480978,235.52,235.46,20.8]
[1759769162762,4.24556338,235.54,235.47,30.46]
[1759769162963,4.24556338,235.54,235.48,0.66]
[1759769163464,14.85947184,235.54,235.48,0.66]
[1759769166187,10.61390846,235.54,235.48,0.66]
[1759769168175,14.85947184,235.54,235.47,29.8]
[1759769168378,17.29649874,235.54,235.47,30.46]
[1759769168982,1.9370269,235.52,235.48,29.8]
[1759769169191,1.9370269,235.52,235.49,29.8]
[1759769169899,1.9370269,235.5,235.44,4.75978743]
[1759769170272,14.86262685,235.49,235.45,29.8]
[1759769170691,14.86262685,235.49,235.45,30.46]
[1759769171072,16.79965375,235.49,235.45,30.46]
[1759769171588,7.7481076,235.56,235.47,10.87647521]
[1759769171589,4.24520292,235.56,235.47,10.87647521]
[1759769171782,4.24520292,235.56,235.49,10.87647521]
[1759769171991,4.24520292,235.56,235.5,30.5]
[1759769172190,14.85821022,235.56,235.51,0.66]
[1759769172384,16.79523712,235.56,235.51,0.66]
[1759769172593,2.4370269,235.55,235.5,29.84]
[1759769172904,14.85821022,235.56,235.5,29.84]
[1759769172905,1.9370269,235.53,235.5,29.84]
[1759769173574,4.24592391,235.52,235.5,29.84]
[1759769174692,14.86073369,235.52,235.5,29.84]
[1759769176492,10.61480978,235.52,235.5,29.84]
[1759769178401,14.86073369,235.52,235.5,29.84]
[1759769178985,16.79776059,235.52,235.5,29.84]
[1759769179186,1.9370269,235.51,235.5,29.82]
[1759769180583,6.68313109,235.51,235.5,29.82]
[1759769180783,6.18313109,235.51,235.5,29.82]
[1759769182205,17.29839158,235.51,235.47,29.8]
[1759769182397,1.9370269,235.49,235.47,29.8]
[1759769182591,4.24664515,235.48,235.47,29.8]
[1759769184310,1.9370269,235.49,235.47,29.8]
[1759769186411,4.24664515,235.48,235.47,29.8]
[1759769187713,4.24664515,235.48,235.47,30.51]
[1759769187913,4.24664515,235.48,235.47,29.8]
[1759769188296,4.24664515,235.48,235.47,30.51]
[1759769193317,1.9370269,235.5,235.47,30.51]
[1759769193714,1.9370269,235.5,235.47,29.8]
[1759769194101,1.9370269,235.5,235.47,30.51]
[1759769194300,16.79839158,235.51,235.47,30.51]
[1759769194717,16.79839158,235.51,235.47,29.8]
[1759769194895,16.79839158,235.51,235.48,0.71]
[1759769195095,4.24610419,235.51,235.47,29.8]
[1759769195414,4.24484251,235.58,235.5,25.55978743]
[1759769195605,4.24484251,235.58,235.51,41.38647521]
[1759769195918,4.24484251,235.58,235.52,0.71]
[1759769198418,4.34468,235.59,235.52,0.71]
[1759769201306,14.95633584,235.59,235.52,0.71]
[1759769201702,4.34468,235.59,235.53,10.87647521]
[1759769202022,4.34468,235.59,235.54,0.71]
[1759769202224,4.34468,235.59,235.55,29.8]
[1759769202603,17.39336274,235.59,235.52,0.71]
[1759769202915,1.9370269,235.58,235.53,29.8]
[1759769203120,2.4370269,235.58,235.54,29.8]
[1759769203308,15.35757948,235.57,235.54,29.8]
[1759769203512,14.85757948,235.57,235.54,29.8]
[1759769204615,14.85757948,235.57,235.55,29.8]
[1759769207529,14.85757948,235.57,235.47,4.75978743]
[1759769207530,2.4370269,235.56,235.47,4.75978743]
[1759769207831,2.4370269,235.56,235.39,33.1]
[1759769207832,1.9370269,235.48,235.45,29.78]
[1759769208019,1.9370269,235.48,235.46,29.78]
[1759769208411,20.8,235.53,235.46,29.78]
[1759769208612,0.5,235.52,235.46,29.78]
[1759769208928,1.9370269,235.47,235.46,29.78]
[1759769209234,2.4370269,235.47,235.46,29.78]
[1759769209529,6.68385239,235.47,235.46,29.78]
[1759769209830,6.18385239,235.47,235.46,29.78]
[1759769210820,16.80091613,235.47,235.42,0.7]
[1759769211020,1.9370269,235.46,235.42,0.7]
[1759769211224,1.9370269,235.46,235.43,0.7]
[1759769211633,4.24718623,235.45,235.43,0.7]
[1759769213633,1.9370269,235.46,235.41,29.8]
[1759769213825,1.9370269,235.46,235.42,0.7]
[1759769214015,1.9370269,235.46,235.43,0.7]
[1759769214528,1.9370269,235.45,235.43,0.7]
[1759769215240,1.9370269,235.45,235.41,29.8]
[1759769215541,4.24736663,235.44,235.42,0.7]
[1759769215722,4.24736663,235.44,235.43,0.7]
[1759769215929,4.24736663,235.44,235.41,30.5]
[1759769216134,4.24736663,235.44,235.42,0.7]
[1759769216957,4.24736663,235.44,235.43,0.7]
[1759769217520,14.86541668,235.45,235.43,0.7]
[1759769218224,4.24718623,235.45,235.44,0.7]
[1759769219542,3.02848216,235.46,235.44,0.7]
[1759769219919,14.86348215,235.48,235.41,29.8]
[1759769220119,4.24644072,235.5,235.45,0.7]
[1759769220322,4.24644072,235.5,235.46,29.8]
[1759769220525,4.24644072,235.5,235.47,0.7]
[1759769220723,4.24644072,235.5,235.48,0.7]
[1759769220942,4.24644072,235.5,235.49,0.7]
[1759769221528,13.64256533,235.54,235.49,0.7]
[1759769221729,4.24574364,235.53,235.49,0.7]
[1759769221922,14.86010274,235.53,235.46,29.8]
[1759769222122,17.8885849,235.53,235.47,0.7]
[1759769222329,17.8885849,235.53,235.48,29.8]
[1759769222641,17.8885849,235.53,235.49,0.7]
[1759769222947,17.8885849,235.53,235.48,29.8]
[1759769222948,3.02848216,235.51,235.48,29.8]
[1759769223246,3.02848216,235.49,235.48,29.8]
[1759769223555,3.02848216,235.49,235.38,10.87647521]
[1759769223556,14.86325802,235.48,235.42,0.7]
[1759769223841,3.02848216,235.45,235.44,29.8]
[1759769225126,24.32848216,235.45,235.35,5.45978743]
[1759769225342,3.02848216,235.39,235.36,29.8]
[1759769225524,21.23322575,235.48,235.36,29.8]
[1759769225722,13.64684019,235.45,235.37,0.7]
[1759769225941,3.02848216,235.42,235.37,0.7]
[1759769226148,3.02848216,235.42,235.38,0.7]
[1759769226447,3.02848216,235.43,235.39,0.7]
[1759769226652,10.61835803,235.45,235.4,0.7]
[1759769226820,3.02848216,235.43,235.4,0.7]
[1759769227019,3.02848216,235.43,235.37,0.7]
[1759769227946,4.24772746,235.42,235.37,0.7]
[1759769228256,4.24736663,235.44,235.37,0.7]
[1759769229861,4.24682549,235.47,235.38,10.87647521]
[1759769230148,3.02848216,235.5,235.41,20.8]
[1759769230355,3.02848216,235.5,235.42,30.5]
[1759769230554,3.02848216,235.5,235.43,0.7]
[1759769231332,4.24574364,235.53,235.43,0.7]
[1759769231547,3.02848216,235.52,235.43,0.7]
[1759769232155,7.27458297,235.52,235.43,0.7]
[1759769232662,3.02848216,235.51,235.43,0.7]
[1759769233434,7.27469921,235.51,235.43,0.7]
[1759769233958,3.02848216,235.49,235.43,0.7]
[1759769234159,4.74621705,235.51,235.44,29.8]
[1759769234357,3.02848216,235.5,235.44,29.8]
[1759769235236,3.02848216,235.5,235.45,0.7]
[1759769235556,7.27490109,235.5,235.46,0.7]
[1759769235739,4.24520292,235.56,235.47,0.7]
[1759769236057,3.02848216,235.53,235.47,0.7]
[1759769236947,3.02848216,235.52,235.47,0.7]
[1759769237549,4.24610419,235.51,235.47,0.7]
[1759769237751,4.24610419,235.51,235.44,29.8]
[1759769238052,4.24610419,235.51,235.45,0.7]
[1759769239666,7.2743784,235.53,235.45,0.7]
[1759769239955,7.7743784,235.53,235.45,0.7]
[1759769240172,3.02848216,235.52,235.45,0.7]
[1759769241573,3.02848216,235.51,235.45,0.7]
[1759769242035,3.52848216,235.5,235.44,29.8]
[1759769242435,3.02848216,235.49,235.42,0.69]
[1759769242659,3.02848216,235.48,235.43,29.8]
[1759769242862,3.02848216,235.5,235.43,29.8]
[1759769243166,14.86136468,235.51,235.44,0.69]
[1759769243350,17.88984684,235.51,235.44,0.69]
[1759769243548,7.27458635,235.51,235.44,0.69]
[1759769244870,4.24610419,235.51,235.44,0.69]
[1759769246264,7.27458635,235.51,235.44,0.69]
[1759769247778,4.24610419,235.51,235.44,0.69]
[1759769248465,4.24592004,235.53,235.44,0.69]
[1759769248783,3.02848216,235.55,235.44,0.69]
[1759769248979,3.02848216,235.55,235.44,4.93734175]
[1759769249183,3.02848216,235.55,235.45,0.69]
[1759769249388,3.52848216,235.55,235.45,0.69]
[1759769249745,0.5,235.54,235.45,0.69]
[1759769249970,4.24574364,235.53,235.45,0.69]
[1759769250181,3.02848216,235.51,235.42,5.44978743]
[1759769250382,0.5,235.51,235.46,29.8]
[1759769250566,0.5,235.5,235.46,29.8]
[1759769250875,0.5,235.49,235.46,29.8]
[1759769251077,0.5,235.51,235.46,29.8]
[1759769251270,0.5,235.5,235.46,29.8]
[1759769251677,0.5,235.49,235.46,29.8]
[1759769252354,4.2462845,235.5,235.46,29.8]
[1759769252671,3.52848216,235.49,235.47,29.8]
[1759769252847,0.5,235.49,235.47,29.8]
[1759769253054,17.89047791,235.5,235.47,29.8]
[1759769253269,7.77476666,235.5,235.47,29.8]
[1759769254579,4.2462845,235.5,235.47,29.8]
[1759769254881,0.5,235.49,235.47,29.8]
[1759769255371,17.89047791,235.5,235.47,29.8]
[1759769255569,18.39047791,235.5,235.47,29.8]
[1759769255876,4.2462845,235.5,235.47,30.47]
[1759769256072,7.27440607,235.52,235.48,0.67]
[1759769256279,4.24592391,235.52,235.48,0.67]
[1759769256460,7.27440607,235.52,235.48,0.67]
[1759769256655,7.27440607,235.52,235.47,29.8]
[1759769256864,7.27440607,235.52,235.47,30.47]
[1759769257369,3.52848216,235.52,235.47,30.47]
[1759769258678,7.27458635,235.51,235.47,30.47]
[1759769258982,7.27458635,235.51,235.47,29.8]
[1759769259278,4.24610419,235.51,235.47,29.8]
[1759769259475,7.27458635,235.51,235.47,30.47]
[1759769259681,3.02848216,235.48,235.41,4.75978743]
[1759769259873,14.86136468,235.51,235.42,29.78]
[1759769259874,3.02848216,235.46,235.42,29.78]
[1759769260265,3.02848216,235.45,235.42,29.78]
[1759769260678,4.24736663,235.44,235.4,0.67]
[1759769260867,4.24736663,235.44,235.41,30.45]
[1759769261786,4.24736663,235.44,235.41,29.78]
[1759769263069,7.27566839,235.45,235.41,29.78]
[1759769263275,17.89363398,235.45,235.39,0.67]
[1759769263486,17.89363398,235.45,235.4,29.8]
[1759769263664,17.89363398,235.45,235.4,30.47]
[1759769264072,17.89363398,235.45,235.4,29.8]
[1759769264073,18.39363398,235.45,235.4,29.8]
[1759769264272,15.36515182,235.45,235.4,29.8]
[1759769264483,17.89363398,235.45,235.4,30.47]
[1759769264681,17.89363398,235.45,235.41,0.67]
[1759769264885,14.86515182,235.45,235.42,0.67]
[1759769265095,4.24718623,235.45,235.42,0.67]
[1759769265670,4.24718623,235.45,235.4,29.8]
[1759769265870,4.24718623,235.45,235.42,0.67]
[1759769266067,4.24718623,235.45,235.4,29.8]
[1759769266292,4.24718623,235.45,235.42,0.67]
[1759769266991,4.24718623,235.45,235.4,29.8]
[1759769267191,4.24718623,235.45,235.41,0.67]
[1759769267493,4.24718623,235.45,235.42,0.67]
[1759769267987,4.24718623,235.45,235.43,0.67]
[1759769268193,14.86472805,235.46,235.43,0.67]
[1759769268790,14.86472805,235.46,235.41,0.66]
[1759769269096,14.86472805,235.46,235.42,0.66]
[1759769269296,10.61772219,235.46,235.42,0.66]
[1759769272384,15.36472805,235.46,235.4,30.46]
[1759769272880,14.86472805,235.46,235.4,30.46]
[1759769273305,14.86472805,235.46,235.4,35.21978743]
[1759769274293,14.86472805,235.46,235.41,0.66]
[1759769274995,14.86472805,235.46,235.42,0.66]
[1759769275386,14.86472805,235.46,235.4,34.55978743]
[1759769275692,4.24700586,235.46,235.43,0.66]
[1759769275901,4.24700586,235.46,235.44,0.66]
[1759769276086,4.24700586,235.46,235.42,0.66]
[1759769276399,3.02848216,235.48,235.42,0.66]
[1759769276583,14.86405303,235.47,235.42,0.66]
[1759769276782,14.86405303,235.47,235.43,0.66]
[1759769277027,14.86405303,235.47,235.4,34.55978743]
[1759769277193,14.86405303,235.47,235.41,0.66]
[1759769277785,10.61722754,235.47,235.41,0.66]
[1759769280698,15.36405303,235.47,235.41,0.66]
[1759769281112,0.5,235.46,235.4,34.55978743]
[1759769281410,17.30205571,235.47,235.4,35.21978743]
[1759769281595,17.30205571,235.47,235.41,29.78]
[1759769282514,16.80205571,235.47,235.41,29.78]
[1759769282681,16.80441732,235.43,235.36,0.66]
[1759769282880,16.80441732,235.43,235.32,12.18582387]
[1759769282881,1.93800268,235.39,235.32,5.41978743]
[1759769283106,2.43800268,235.4,235.33,30.44]
[1759769283280,2.43800268,235.39,235.33,30.44]
[1759769283601,2.43800268,235.38,235.33,29.78]